[Event "Early-Titled-Tuesday-Blitz-March-05-2024"]
[Site "Chess.com"]
[Date "2024.03.05"]
[Round "9"]
[White "AA95"]
[Black "UK_23"]
[Result "1-0"]
[WhiteElo "2490"]
[BlackElo "2349"]
[TimeControl "180+1"]
[EndTime "9:44:29 PST"]
[Termination "AA95 won by checkmate"]

1. Nf3 {[%clk 0:03:00.9]} 1... d5 {[%clk 0:02:55.5]} 2. g3 {[%clk 0:03:01.3]}
2... Nf6 {[%clk 0:02:54]} 3. Bg2 {[%clk 0:03:01.7]} 3... e6 {[%clk 0:02:54.6]}
4. O-O {[%clk 0:03:02]} 4... Be7 {[%clk 0:02:54.9]} 5. d4 {[%clk 0:03:02.7]}
5... O-O {[%clk 0:02:55.3]} 6. c4 {[%clk 0:03:03.4]} 6... c6 {[%clk 0:02:53]} 7.
Qc2 {[%clk 0:03:02.9]} 7... b6 {[%clk 0:02:52.6]} 8. Rd1 {[%clk 0:03:02.2]} 8...
Bb7 {[%clk 0:02:52]} 9. Bf4 {[%clk 0:03:01.9]} 9... Na6 {[%clk 0:02:51.2]} 10.
a3 {[%clk 0:02:58.2]} 10... Rc8 {[%clk 0:02:50.6]} 11. Nc3 {[%clk 0:02:55.4]}
11... c5 {[%clk 0:02:49.8]} 12. dxc5 {[%clk 0:02:43.5]} 12... bxc5 {[%clk
0:02:40.7]} 13. e4 {[%clk 0:02:34.6]} 13... d4 {[%clk 0:02:38.7]} 14. e5 {[%clk
0:02:31.5]} 14... Nd7 {[%clk 0:02:36.5]} 15. Nb5 {[%clk 0:02:29.6]} 15... Qb6
{[%clk 0:02:33.7]} 16. Bg5 {[%clk 0:02:03.7]} 16... Bxg5 {[%clk 0:02:13.8]} 17.
Nxg5 {[%clk 0:02:03]} 17... g6 {[%clk 0:02:14.6]} 18. Bxb7 {[%clk 0:02:01.1]}
18... Qxb7 {[%clk 0:02:12.6]} 19. Nd6 {[%clk 0:02:01.4]} 19... Qc6 {[%clk
0:02:11.2]} 20. Nxc8 {[%clk 0:02:00.9]} 20... Rxc8 {[%clk 0:02:12.1]} 21. f4
{[%clk 0:01:56.9]} 21... f6 {[%clk 0:02:07.1]} 22. exf6 {[%clk 0:01:53.1]} 22...
Nxf6 {[%clk 0:02:08]} 23. Re1 {[%clk 0:01:52.7]} 23... Re8 {[%clk 0:02:03.3]}
24. Qg2 {[%clk 0:01:33.8]} 24... Qb6 {[%clk 0:02:00.2]} 25. Re5 {[%clk
0:01:23.2]} 25... Ng4 {[%clk 0:01:59.4]} 26. Qh3 {[%clk 0:01:01.8]} 26... h5
{[%clk 0:01:55.1]} 27. Rae1 {[%clk 0:00:37.9]} 27... Qxb2 {[%clk 0:01:50.6]} 28.
R5e2 {[%clk 0:00:33.9]} 28... Qxa3 {[%clk 0:01:47.8]} 29. Qg2 {[%clk 0:00:31.8]}
29... d3 {[%clk 0:01:43.7]} 30. Qb7 {[%clk 0:00:29.2]} 30... Rf8 {[%clk
0:01:35.8]} 31. Qh7# {[%clk 0:00:29.3]} 1-0

[Event "Early-Titled-Tuesday-Blitz-March-05-2024"]
[Site "Chess.com"]
[Date "2024.03.05"]
[Round "9"]
[White "SpeedofLight0"]
[Black "ckgchess"]
[Result "1-0"]
[WhiteElo "3073"]
[BlackElo "2908"]
[TimeControl "180+1"]
[EndTime "9:44:30 PST"]
[Termination "SpeedofLight0 won by resignation"]

1. d4 {[%clk 0:02:46.2]} 1... Nf6 {[%clk 0:02:59.2]} 2. Nc3 {[%clk 0:02:46.2]}
2... d5 {[%clk 0:02:59.2]} 3. Bf4 {[%clk 0:02:46.3]} 3... a6 {[%clk 0:02:54.3]}
4. e3 {[%clk 0:02:45.7]} 4... b5 {[%clk 0:02:54.2]} 5. Bd3 {[%clk 0:02:44.2]}
5... Bb7 {[%clk 0:02:33.4]} 6. Nf3 {[%clk 0:02:43.6]} 6... e6 {[%clk 0:02:31.6]}
7. O-O {[%clk 0:02:42.9]} 7... c5 {[%clk 0:02:31]} 8. Bg5 {[%clk 0:02:42.7]}
8... Nbd7 {[%clk 0:02:25.9]} 9. e4 {[%clk 0:02:32.9]} 9... c4 {[%clk 0:02:11.9]}
10. Be2 {[%clk 0:02:25]} 10... dxe4 {[%clk 0:02:12.2]} 11. Nd2 {[%clk
0:02:25.1]} 11... Be7 {[%clk 0:02:10.3]} 12. f3 {[%clk 0:02:18.7]} 12... exf3
{[%clk 0:02:08.9]} 13. Bxf3 {[%clk 0:02:19.6]} 13... Bxf3 {[%clk 0:02:08.2]} 14.
Qxf3 {[%clk 0:02:19.2]} 14... O-O {[%clk 0:02:07.5]} 15. Rae1 {[%clk 0:02:18.2]}
15... Nb6 {[%clk 0:01:52.9]} 16. Nde4 {[%clk 0:02:13.6]} 16... Nxe4 {[%clk
0:01:49.9]} 17. Bxe7 {[%clk 0:02:11.2]} 17... Qxd4+ {[%clk 0:01:19.3]} 18. Kh1
{[%clk 0:02:11.2]} 18... Nd2 {[%clk 0:01:05.9]} 19. Qf2 {[%clk 0:01:52.7]} 19...
Qxf2 {[%clk 0:00:45.7]} 20. Rxf2 {[%clk 0:01:53.6]} 20... Rfe8 {[%clk
0:00:43.9]} 21. Bd6 {[%clk 0:01:25.5]} 21... b4 {[%clk 0:00:32.1]} 22. Bxb4
{[%clk 0:01:24.7]} 22... Nd5 {[%clk 0:00:25.2]} 23. Nxd5 {[%clk 0:01:22]} 23...
exd5 {[%clk 0:00:26.1]} 24. Bxd2 {[%clk 0:01:21.8]} 1-0

[Event "Early-Titled-Tuesday-Blitz-March-05-2024"]
[Site "Chess.com"]
[Date "2024.03.05"]
[Round "9"]
[White "dealshark"]
[Black "Eliwood44"]
[Result "0-1"]
[WhiteElo "2348"]
[BlackElo "2521"]
[TimeControl "180+1"]
[EndTime "9:44:31 PST"]
[Termination "Eliwood44 won by resignation"]

1. Nf3 {[%clk 0:03:00.9]} 1... d5 {[%clk 0:02:12.8]} 2. e3 {[%clk 0:03:00.6]}
2... g6 {[%clk 0:02:13]} 3. c4 {[%clk 0:03:00.7]} 3... c6 {[%clk 0:02:12.1]} 4.
Nc3 {[%clk 0:03:00.3]} 4... Bg7 {[%clk 0:02:12]} 5. b3 {[%clk 0:03:00.4]} 5...
e5 {[%clk 0:02:10.7]} 6. cxd5 {[%clk 0:02:58.8]} 6... cxd5 {[%clk 0:02:10.7]} 7.
d4 {[%clk 0:02:58.8]} 7... e4 {[%clk 0:02:09]} 8. Nd2 {[%clk 0:02:58.2]} 8...
Ne7 {[%clk 0:02:06.7]} 9. Ba3 {[%clk 0:02:56.7]} 9... Be6 {[%clk 0:02:04.8]} 10.
Bb5+ {[%clk 0:02:55.2]} 10... Nbc6 {[%clk 0:02:04.4]} 11. O-O {[%clk 0:02:55]}
11... O-O {[%clk 0:02:04.3]} 12. Rc1 {[%clk 0:02:46.1]} 12... a6 {[%clk
0:02:04.1]} 13. Be2 {[%clk 0:02:42.2]} 13... b5 {[%clk 0:02:04.3]} 14. Bb2
{[%clk 0:02:40.8]} 14... f5 {[%clk 0:02:03.7]} 15. f3 {[%clk 0:02:27.9]} 15...
Rc8 {[%clk 0:01:57.8]} 16. fxe4 {[%clk 0:02:24.6]} 16... fxe4 {[%clk 0:01:58]}
17. Rxf8+ {[%clk 0:02:24.3]} 17... Qxf8 {[%clk 0:01:58.4]} 18. Qf1 {[%clk
0:02:22.5]} 18... Nf5 {[%clk 0:01:57]} 19. Nd1 {[%clk 0:01:53.1]} 19... Bh6
{[%clk 0:01:49.1]} 20. Qf2 {[%clk 0:01:41.4]} 20... Ncxd4 {[%clk 0:01:35.4]} 21.
Rxc8 {[%clk 0:01:27.3]} 21... Nxe2+ {[%clk 0:01:35.3]} 22. Qxe2 {[%clk
0:01:25.1]} 22... Qxc8 {[%clk 0:01:34.5]} 23. g4 {[%clk 0:01:19.6]} 23... Nh4
{[%clk 0:01:34.2]} 24. Qf2 {[%clk 0:01:16.6]} 24... Bg5 {[%clk 0:01:22.8]} 25.
Qg3 {[%clk 0:01:04.7]} 25... Qc2 {[%clk 0:01:16.7]} 26. Qe5 {[%clk 0:01:02.1]}
26... Qxd1+ {[%clk 0:01:11.9]} 27. Nf1 {[%clk 0:00:47.3]} 27... Nf3+ {[%clk
0:01:11]} 0-1

[Event "Early-Titled-Tuesday-Blitz-March-05-2024"]
[Site "Chess.com"]
[Date "2024.03.05"]
[Round "9"]
[White "Sina_Movahed"]
[Black "Volodar_Murzin"]
[Result "0-1"]
[WhiteElo "3043"]
[BlackElo "2990"]
[TimeControl "180+1"]
[EndTime "9:44:33 PST"]
[Termination "Volodar_Murzin won by resignation"]

1. e4 {[%clk 0:03:00.9]} 1... e5 {[%clk 0:02:58.5]} 2. Nf3 {[%clk 0:03:01.4]}
2... Nc6 {[%clk 0:02:59.2]} 3. Bb5 {[%clk 0:03:01.7]} 3... Nf6 {[%clk
0:02:59.6]} 4. O-O {[%clk 0:03:01.3]} 4... Nxe4 {[%clk 0:02:59.8]} 5. Re1 {[%clk
0:03:02.1]} 5... Nd6 {[%clk 0:03:00.2]} 6. Nxe5 {[%clk 0:03:02.8]} 6... Be7
{[%clk 0:02:57.4]} 7. Bd3 {[%clk 0:03:03.4]} 7... Nxe5 {[%clk 0:02:31.9]} 8.
Rxe5 {[%clk 0:03:04.3]} 8... O-O {[%clk 0:02:32]} 9. Nc3 {[%clk 0:03:04.3]} 9...
Bf6 {[%clk 0:02:26]} 10. Re3 {[%clk 0:03:03.9]} 10... g6 {[%clk 0:02:22.4]} 11.
Nd5 {[%clk 0:03:03.9]} 11... c6 {[%clk 0:02:21.9]} 12. Nxf6+ {[%clk 0:02:59.4]}
12... Qxf6 {[%clk 0:02:22.8]} 13. Rb1 {[%clk 0:02:43.4]} 13... Nf5 {[%clk
0:02:12.2]} 14. Re1 {[%clk 0:02:31.2]} 14... d5 {[%clk 0:02:06.1]} 15. b4 {[%clk
0:02:31.8]} 15... Bd7 {[%clk 0:01:59.8]} 16. Bb2 {[%clk 0:02:24.6]} 16... Qg5
{[%clk 0:01:48]} 17. Bf1 {[%clk 0:02:11.7]} 17... Rfe8 {[%clk 0:01:44.6]} 18. d3
{[%clk 0:02:06.3]} 18... Nh4 {[%clk 0:01:20.7]} 19. Kh1 {[%clk 0:02:06.2]} 19...
Bg4 {[%clk 0:01:17.5]} 20. Qc1 {[%clk 0:02:04.2]} 20... Rxe1 {[%clk 0:00:41.7]}
21. Qxe1 {[%clk 0:02:01.7]} 21... Bf3 {[%clk 0:00:35.5]} 22. gxf3 {[%clk
0:01:16]} 22... Nxf3 {[%clk 0:00:34.4]} 23. Bg2 {[%clk 0:01:14.1]} 23... Nxe1
{[%clk 0:00:34.2]} 24. Rxe1 {[%clk 0:01:15]} 24... Qd2 {[%clk 0:00:33.2]} 0-1

[Event "Early-Titled-Tuesday-Blitz-March-05-2024"]
[Site "Chess.com"]
[Date "2024.03.05"]
[Round "9"]
[White "1mbl4"]
[Black "StrackedAktonamee"]
[Result "1-0"]
[WhiteElo "2620"]
[BlackElo "2492"]
[TimeControl "180+1"]
[EndTime "9:45:01 PST"]
[Termination "1mbl4 won on time"]

1. d4 {[%clk 0:03:00.9]} 1... Nf6 {[%clk 0:02:59.2]} 2. Bf4 {[%clk 0:03:01.3]}
2... d5 {[%clk 0:02:52.1]} 3. Nc3 {[%clk 0:03:01.4]} 3... e6 {[%clk 0:02:50.6]}
4. Nb5 {[%clk 0:03:01.3]} 4... Bb4+ {[%clk 0:02:51.1]} 5. c3 {[%clk 0:03:01.4]}
5... Ba5 {[%clk 0:02:52]} 6. a4 {[%clk 0:03:02.1]} 6... a6 {[%clk 0:02:50.8]} 7.
b4 {[%clk 0:03:02.6]} 7... Bb6 {[%clk 0:02:45.3]} 8. a5 {[%clk 0:02:59.1]} 8...
axb5 {[%clk 0:02:27.3]} 9. axb6 {[%clk 0:02:59]} 9... Rxa1 {[%clk 0:02:18.7]}
10. Qxa1 {[%clk 0:02:59.9]} 10... Na6 {[%clk 0:02:04.8]} 11. bxc7 {[%clk
0:02:59.8]} 11... Qd7 {[%clk 0:01:55.3]} 12. Nf3 {[%clk 0:02:43.1]} 12... Nh5
{[%clk 0:00:53.4]} 13. Ne5 {[%clk 0:02:25.5]} 13... Qxc7 {[%clk 0:00:48.4]} 14.
e3 {[%clk 0:02:26]} 14... Qb6 {[%clk 0:00:33.4]} 15. Qa5 {[%clk 0:02:09.8]}
15... Qxa5 {[%clk 0:00:33.6]} 16. bxa5 {[%clk 0:02:10.7]} 16... Nc7 {[%clk
0:00:20.5]} 17. Nxf7 {[%clk 0:01:52.3]} 17... Nxf4 {[%clk 0:00:19.8]} 18. Nxh8
{[%clk 0:01:52.6]} 18... Nh5 {[%clk 0:00:20.2]} 19. Bd3 {[%clk 0:01:53.2]} 19...
Nf6 {[%clk 0:00:19.7]} 20. g4 {[%clk 0:01:53.7]} 20... Ne4 {[%clk 0:00:09.9]}
21. f3 {[%clk 0:01:51.5]} 21... Nxc3 {[%clk 0:00:09]} 22. Bxh7 {[%clk
0:01:51.6]} 22... b4 {[%clk 0:00:08.9]} 23. Kd2 {[%clk 0:01:51.6]} 23... Bd7
{[%clk 0:00:08.7]} 24. Ng6 {[%clk 0:01:48.6]} 24... N7b5 {[%clk 0:00:05.6]} 25.
Ne5 {[%clk 0:01:48.1]} 25... Nd6 {[%clk 0:00:02.7]} 26. Bd3 {[%clk 0:01:45.2]}
26... Ba4 {[%clk 0:00:02.8]} 27. Ra1 {[%clk 0:01:43.4]} 27... Ke7 {[%clk
0:00:01]} 28. h4 {[%clk 0:01:37.4]} 28... Be8 {[%clk 0:00:01.7]} 29. a6 {[%clk
0:01:32.6]} 29... bxa6 {[%clk 0:00:02]} 30. Rxa6 {[%clk 0:01:33.5]} 30... Kf6
{[%clk 0:00:02.2]} 31. Rxd6 {[%clk 0:01:32.7]} 1-0

[Event "Early-Titled-Tuesday-Blitz-March-05-2024"]
[Site "Chess.com"]
[Date "2024.03.05"]
[Round "9"]
[White "LileKoridze"]
[Black "HajiyevKanan"]
[Result "0-1"]
[WhiteElo "2431"]
[BlackElo "2522"]
[TimeControl "180+1"]
[EndTime "9:45:04 PST"]
[Termination "HajiyevKanan won by resignation"]

1. d4 {[%clk 0:03:00.9]} 1... c6 {[%clk 0:03:00.2]} 2. c4 {[%clk 0:03:00.7]}
2... d5 {[%clk 0:03:01.1]} 3. Nf3 {[%clk 0:03:00.7]} 3... Nf6 {[%clk 0:03:01.9]}
4. e3 {[%clk 0:03:01]} 4... a6 {[%clk 0:03:02.6]} 5. cxd5 {[%clk 0:03:00.6]}
5... cxd5 {[%clk 0:03:02.6]} 6. Nc3 {[%clk 0:03:00.7]} 6... Nc6 {[%clk
0:03:03.2]} 7. Bd3 {[%clk 0:03:00.6]} 7... Bg4 {[%clk 0:03:03.1]} 8. h3 {[%clk
0:03:00.6]} 8... Bh5 {[%clk 0:03:02.2]} 9. O-O {[%clk 0:03:00.7]} 9... e6 {[%clk
0:03:02]} 10. Be2 {[%clk 0:03:01]} 10... Bd6 {[%clk 0:03:01.8]} 11. a3 {[%clk
0:02:59.9]} 11... O-O {[%clk 0:03:02.1]} 12. b4 {[%clk 0:02:57.3]} 12... Rc8
{[%clk 0:03:01.4]} 13. Bb2 {[%clk 0:02:56]} 13... b5 {[%clk 0:03:01.8]} 14. Rc1
{[%clk 0:02:51.9]} 14... Bb8 {[%clk 0:03:00.7]} 15. Nb1 {[%clk 0:02:51.2]} 15...
Qd6 {[%clk 0:03:00]} 16. Ne5 {[%clk 0:02:50.8]} 16... Bg6 {[%clk 0:02:56.2]} 17.
f4 {[%clk 0:02:48.9]} 17... Ne4 {[%clk 0:02:53.5]} 18. Nd2 {[%clk 0:02:42.5]}
18... Nxe5 {[%clk 0:02:45.6]} 19. fxe5 {[%clk 0:02:42.3]} 19... Qe7 {[%clk
0:02:43.6]} 20. Nxe4 {[%clk 0:02:25.7]} 20... Bxe4 {[%clk 0:02:43.4]} 21. Bd3
{[%clk 0:02:25.8]} 21... Rxc1 {[%clk 0:02:43]} 22. Bxc1 {[%clk 0:02:25]} 22...
Bxd3 {[%clk 0:02:39.7]} 23. Qxd3 {[%clk 0:02:24.6]} 23... Rc8 {[%clk 0:02:39.3]}
24. Bd2 {[%clk 0:02:22.8]} 24... Rc4 {[%clk 0:02:36.3]} 25. e4 {[%clk
0:02:16.2]} 25... Rxd4 {[%clk 0:02:25.2]} 26. Qc3 {[%clk 0:01:55.8]} 26... Rc4
{[%clk 0:02:14.9]} 27. Qg3 {[%clk 0:01:55]} 27... Rxe4 {[%clk 0:02:11.8]} 28.
Bg5 {[%clk 0:01:53.5]} 28... Bxe5 {[%clk 0:01:49.9]} 29. Qf2 {[%clk 0:01:44.1]}
29... f6 {[%clk 0:01:41.4]} 30. Be3 {[%clk 0:01:40.5]} 30... Qc7 {[%clk
0:01:36.9]} 31. Bc5 {[%clk 0:01:36.3]} 31... f5 {[%clk 0:01:27.5]} 32. Qf3
{[%clk 0:01:34.4]} 32... Bd4+ {[%clk 0:01:23.9]} 33. Bxd4 {[%clk 0:01:33.8]}
33... Rxd4 {[%clk 0:01:24.8]} 34. Kh1 {[%clk 0:01:34.3]} 34... Qc4 {[%clk
0:01:23.1]} 35. Re1 {[%clk 0:01:33.6]} 35... Re4 {[%clk 0:01:23.4]} 36. Rd1
{[%clk 0:01:33.1]} 36... h6 {[%clk 0:01:21.6]} 37. Qg3 {[%clk 0:01:32.9]} 37...
Qe2 {[%clk 0:01:12.7]} 38. Rc1 {[%clk 0:01:32.1]} 38... Rc4 {[%clk 0:01:12.7]}
39. Re1 {[%clk 0:01:32.3]} 39... f4 {[%clk 0:01:06.9]} 40. Qh4 {[%clk
0:01:26.5]} 40... f3 {[%clk 0:00:54.5]} 41. Rxe2 {[%clk 0:01:15.2]} 41... Rxh4
{[%clk 0:00:45.8]} 42. Rxe6 {[%clk 0:01:14.9]} 42... f2 {[%clk 0:00:44.3]} 0-1

[Event "Early-Titled-Tuesday-Blitz-March-05-2024"]
[Site "Chess.com"]
[Date "2024.03.05"]
[Round "9"]
[White "PawnEatingZombie"]
[Black "tylityli"]
[Result "0-1"]
[WhiteElo "2190"]
[BlackElo "2308"]
[TimeControl "180+1"]
[EndTime "9:45:07 PST"]
[Termination "tylityli won by resignation"]

1. e4 {[%clk 0:02:59.2]} 1... e5 {[%clk 0:02:59.5]} 2. Nf3 {[%clk 0:02:58.5]}
2... Nc6 {[%clk 0:02:59.8]} 3. Nc3 {[%clk 0:02:59]} 3... Nf6 {[%clk 0:02:58.5]}
4. Bb5 {[%clk 0:02:59]} 4... Bb4 {[%clk 0:02:57.3]} 5. d3 {[%clk 0:02:56.2]}
5... d6 {[%clk 0:02:55]} 6. Bxc6+ {[%clk 0:02:55.2]} 6... bxc6 {[%clk
0:02:54.8]} 7. O-O {[%clk 0:02:55.8]} 7... Bxc3 {[%clk 0:02:54.3]} 8. bxc3
{[%clk 0:02:55.1]} 8... h6 {[%clk 0:02:54.8]} 9. h3 {[%clk 0:02:52.4]} 9... O-O
{[%clk 0:02:54.2]} 10. c4 {[%clk 0:02:49.4]} 10... Re8 {[%clk 0:02:53.2]} 11.
Nh2 {[%clk 0:02:47.5]} 11... d5 {[%clk 0:02:52.5]} 12. cxd5 {[%clk 0:02:41.7]}
12... cxd5 {[%clk 0:02:51.8]} 13. exd5 {[%clk 0:02:38.1]} 13... Qxd5 {[%clk
0:02:47.1]} 14. Be3 {[%clk 0:02:24.7]} 14... Bb7 {[%clk 0:02:36.9]} 15. f3
{[%clk 0:02:22.8]} 15... c5 {[%clk 0:02:30.7]} 16. Re1 {[%clk 0:02:21]} 16... c4
{[%clk 0:02:26.5]} 17. dxc4 {[%clk 0:02:04.7]} 17... Qxc4 {[%clk 0:02:25.7]} 18.
Qd3 {[%clk 0:02:02.3]} 18... Qc6 {[%clk 0:02:16.2]} 19. Rad1 {[%clk 0:01:41]}
19... e4 {[%clk 0:02:09.9]} 20. fxe4 {[%clk 0:01:40.4]} 20... Nxe4 {[%clk
0:02:08.8]} 21. Nf3 {[%clk 0:01:36.3]} 21... Nc3 {[%clk 0:02:06.6]} 22. Ra1
{[%clk 0:01:25.6]} 22... Rad8 {[%clk 0:02:03]} 23. Qf5 {[%clk 0:01:22.1]} 23...
Rd5 {[%clk 0:01:59.6]} 24. Qg4 {[%clk 0:01:18.6]} 24... Re6 {[%clk 0:01:56.2]}
25. Bxa7 {[%clk 0:01:09.8]} 25... Ne2+ {[%clk 0:01:45.9]} 26. Kh1 {[%clk
0:01:05.8]} 26... Qxc2 {[%clk 0:01:32.3]} 27. a4 {[%clk 0:00:55.4]} 27... Rg6
{[%clk 0:01:22.9]} 28. Qh4 {[%clk 0:00:19.7]} 28... Ng3+ {[%clk 0:01:14.1]} 29.
Kh2 {[%clk 0:00:18.9]} 29... Nf1+ {[%clk 0:01:07.6]} 0-1

[Event "Early-Titled-Tuesday-Blitz-March-05-2024"]
[Site "Chess.com"]
[Date "2024.03.05"]
[Round "9"]
[White "Ajedrez_con_German"]
[Black "FREDERICKtheMATE"]
[Result "0-1"]
[WhiteElo "2587"]
[BlackElo "2725"]
[TimeControl "180+1"]
[EndTime "9:45:20 PST"]
[Termination "FREDERICKtheMATE won by resignation"]

1. Nf3 {[%clk 0:02:58.5]} 1... Nf6 {[%clk 0:02:59.8]} 2. e3 {[%clk 0:02:59.4]}
2... g6 {[%clk 0:02:57.7]} 3. b3 {[%clk 0:03:00.1]} 3... Bg7 {[%clk 0:02:58.1]}
4. Bb2 {[%clk 0:03:01]} 4... O-O {[%clk 0:02:58.5]} 5. Be2 {[%clk 0:03:01.6]}
5... c5 {[%clk 0:02:58.7]} 6. c4 {[%clk 0:03:01.8]} 6... Nc6 {[%clk 0:02:59.2]}
7. O-O {[%clk 0:03:01.8]} 7... d5 {[%clk 0:02:58.2]} 8. cxd5 {[%clk 0:03:02.3]}
8... Nxd5 {[%clk 0:02:58.8]} 9. Bxg7 {[%clk 0:03:02.5]} 9... Kxg7 {[%clk
0:02:59.7]} 10. Qc1 {[%clk 0:03:03.2]} 10... Qd6 {[%clk 0:02:58.9]} 11. Na3
{[%clk 0:03:01.4]} 11... b6 {[%clk 0:02:58.2]} 12. d4 {[%clk 0:03:00.5]} 12...
cxd4 {[%clk 0:02:56.8]} 13. Nb5 {[%clk 0:03:00.9]} 13... Qf6 {[%clk 0:02:56.5]}
14. Nbxd4 {[%clk 0:03:00.7]} 14... Nxd4 {[%clk 0:02:55.7]} 15. Nxd4 {[%clk
0:03:01.1]} 15... Bb7 {[%clk 0:02:56.2]} 16. Qb2 {[%clk 0:02:52.2]} 16... Rac8
{[%clk 0:02:50.7]} 17. Rac1 {[%clk 0:02:51]} 17... a6 {[%clk 0:02:39.1]} 18. h3
{[%clk 0:02:44.3]} 18... b5 {[%clk 0:02:38.9]} 19. Bg4 {[%clk 0:02:40]} 19...
Rxc1 {[%clk 0:02:36.9]} 20. Rxc1 {[%clk 0:02:40.9]} 20... Rd8 {[%clk 0:02:36.1]}
21. Bf3 {[%clk 0:02:33.8]} 21... e5 {[%clk 0:02:35.4]} 22. Nc2 {[%clk
0:01:52.1]} 22... e4 {[%clk 0:02:33.8]} 23. Qxf6+ {[%clk 0:01:51.5]} 23... Nxf6
{[%clk 0:02:34.5]} 24. Be2 {[%clk 0:01:50.4]} 24... Rd2 {[%clk 0:02:34]} 25. Nd4
{[%clk 0:01:50.8]} 25... Rxa2 {[%clk 0:02:33.8]} 26. Rc7 {[%clk 0:01:51]} 26...
Bd5 {[%clk 0:02:32.7]} 27. Bg4 {[%clk 0:01:37]} 27... Kf8 {[%clk 0:02:29.1]} 28.
Bc8 {[%clk 0:01:33.5]} 28... b4 {[%clk 0:02:16.7]} 29. g4 {[%clk 0:01:27.2]}
29... h6 {[%clk 0:02:09.3]} 30. Ra7 {[%clk 0:01:20.7]} 30... a5 {[%clk
0:02:08.5]} 31. Kg2 {[%clk 0:01:17.1]} 31... Ke8 {[%clk 0:01:53.5]} 32. Kg3
{[%clk 0:01:17.1]} 32... Kd8 {[%clk 0:01:53.3]} 33. Bb7 {[%clk 0:01:14]} 33...
Bxb7 {[%clk 0:01:50.8]} 34. Rxb7 {[%clk 0:01:14.3]} 34... Ke8 {[%clk 0:01:50.9]}
35. Nc6 {[%clk 0:01:06.6]} 35... Nd5 {[%clk 0:01:43.5]} 36. Ra7 {[%clk
0:01:00.6]} 36... Nc3 {[%clk 0:01:31]} 37. Kf4 {[%clk 0:00:55.2]} 37... Rxf2+
{[%clk 0:01:28.4]} 38. Ke5 {[%clk 0:00:55.6]} 38... a4 {[%clk 0:01:19.4]} 39.
bxa4 {[%clk 0:00:54]} 39... b3 {[%clk 0:01:19.3]} 40. Rb7 {[%clk 0:00:48.2]}
40... b2 {[%clk 0:01:18.9]} 41. a5 {[%clk 0:00:48.3]} 41... b1=Q {[%clk
0:01:15.3]} 42. Rxb1 {[%clk 0:00:46.2]} 42... Nxb1 {[%clk 0:01:16.2]} 43. a6
{[%clk 0:00:46.5]} 43... Ra2 {[%clk 0:01:15.5]} 44. a7 {[%clk 0:00:46.9]} 44...
Nc3 {[%clk 0:01:14.6]} 0-1

[Event "Early-Titled-Tuesday-Blitz-March-05-2024"]
[Site "Chess.com"]
[Date "2024.03.05"]
[Round "9"]
[White "viviania"]
[Black "GianmarcoVaR"]
[Result "1-0"]
[WhiteElo "2903"]
[BlackElo "2766"]
[TimeControl "180+1"]
[EndTime "9:45:21 PST"]
[Termination "viviania won by resignation"]

1. e4 {[%clk 0:02:57.7]} 1... c5 {[%clk 0:02:58.6]} 2. Nf3 {[%clk 0:02:57.4]}
2... d6 {[%clk 0:02:59.2]} 3. d4 {[%clk 0:02:57.2]} 3... cxd4 {[%clk 0:03:00.1]}
4. Nxd4 {[%clk 0:02:57.6]} 4... Nf6 {[%clk 0:03:00.8]} 5. f3 {[%clk 0:02:58]}
5... e5 {[%clk 0:03:00.7]} 6. Nb3 {[%clk 0:02:57.8]} 6... d5 {[%clk 0:03:01.2]}
7. Bg5 {[%clk 0:02:56.8]} 7... Be6 {[%clk 0:03:01.9]} 8. Bxf6 {[%clk 0:02:55.1]}
8... gxf6 {[%clk 0:03:02.8]} 9. exd5 {[%clk 0:02:55.4]} 9... Qxd5 {[%clk
0:03:03.7]} 10. Qxd5 {[%clk 0:02:55.2]} 10... Bxd5 {[%clk 0:03:04.6]} 11. Nc3
{[%clk 0:02:55.4]} 11... Be6 {[%clk 0:03:04.7]} 12. Nb5 {[%clk 0:02:46.5]} 12...
Kd8 {[%clk 0:02:32.1]} 13. O-O-O+ {[%clk 0:02:43]} 13... Nd7 {[%clk 0:02:32.4]}
14. Na5 {[%clk 0:02:42.8]} 14... Rb8 {[%clk 0:02:18.9]} 15. Bc4 {[%clk
0:02:42.6]} 15... a6 {[%clk 0:01:57.6]} 16. Nd6 {[%clk 0:02:39]} 16... Bxc4
{[%clk 0:01:46.7]} 17. Naxc4 {[%clk 0:02:35.5]} 17... Ke7 {[%clk 0:01:45.8]} 18.
Nxf7 {[%clk 0:02:27.1]} 18... Kxf7 {[%clk 0:01:39.1]} 19. Rxd7+ {[%clk
0:02:26.1]} 19... Ke6 {[%clk 0:01:39.8]} 20. Rhd1 {[%clk 0:02:17.1]} 20... Be7
{[%clk 0:01:40]} 21. Ne3 {[%clk 0:02:08]} 21... h5 {[%clk 0:01:34.1]} 22. c3
{[%clk 0:01:53.3]} 22... Rhd8 {[%clk 0:01:30.5]} 23. Rxd8 {[%clk 0:01:52.2]}
23... Bxd8 {[%clk 0:01:31.2]} 24. g4 {[%clk 0:01:43.2]} 24... hxg4 {[%clk
0:01:04.9]} 25. fxg4 {[%clk 0:01:42.9]} 25... Bb6 {[%clk 0:01:02]} 26. Nf5
{[%clk 0:01:42.3]} 26... e4 {[%clk 0:00:59.3]} 27. Rd6+ {[%clk 0:01:41.4]} 27...
Ke5 {[%clk 0:00:50.9]} 28. Rxb6 {[%clk 0:01:41]} 28... Rh8 {[%clk 0:00:51.7]}
29. Rxb7 {[%clk 0:01:18.9]} 29... Rxh2 {[%clk 0:00:50.8]} 30. Re7+ {[%clk
0:01:18.6]} 30... Kf4 {[%clk 0:00:51.1]} 31. Nd4 {[%clk 0:01:14.5]} 31... Ke3
{[%clk 0:00:42.2]} 32. a4 {[%clk 0:01:13.4]} 32... Kd3 {[%clk 0:00:42.1]} 33.
Kb1 {[%clk 0:01:13.3]} 33... Rg2 {[%clk 0:00:32.2]} 34. Re6 {[%clk 0:01:09.4]}
34... Rxg4 {[%clk 0:00:31]} 35. Rxf6 {[%clk 0:01:07.8]} 35... e3 {[%clk
0:00:29.2]} 36. Rxa6 {[%clk 0:01:04.8]} 36... e2 {[%clk 0:00:26.8]} 37. Nxe2
{[%clk 0:01:02.8]} 1-0